[Event "VIII Open Semana Santa 2024"]
[Site "San Vicente del Raspeig"]
[Date "2024.03.28"]
[Round "2.16"]
[White "Gkavardinas, Antonios"]
[Black "Fernandez Guillen, Ernesto J."]
[Result "1-0"]
[ECO "C54"]
[WhiteElo "2218"]
[BlackElo "2471"]
[Annotator "TA"]
[PlyCount "41"]
[EventDate "2024.03.27"]
[EventType "swiss"]
[EventCountry "ESP"]
[SourceTitle "playchess.com"]
[Source "ChessBase"]
[SourceQuality "1"]
[TimeControl "5400+30"]

{[%evp 12,41,46,33,43,45,42,44,43,38,86,60,143,139,125,141,131,106,187,178,179,160,236,146,434,414,710,717,702,712,1082,1010]} 1. e4 {[%emt 0:00:02]} e5 {[%emt 0:07:06]} 2. Nf3 {[%emt 0:00:16]} Nc6 {[%emt 0:00:06]} 3. Bc4 {[%emt 0:00:09]} Bc5 {[%emt 0:00:06]} 4. d3 {[%emt 0:00:15]} d6 {[%emt 0:02:11]} 5. c3 {[%emt 0:00:34]} Nf6 {[%emt 0:01:23]} 6. O-O {[%emt 0:01:09]} Bg4 {[%emt 0:00:33]} 7. Nbd2 {[%emt 0:01:37][%cal Bb1d2,Bd2f1,Bf1g3,Bg3f5][%mdl 32]} Bb6 {[%emt 0:02:16]} 8. a4 {[%emt 0:02:10]} a6 {[%emt 0:07:32]} 9. Re1 {[%emt 0:02:27]} h6 {[%emt 0:02:43] White is slightly better.} 10. Nf1 {[%emt 0:01:24]} g5 {[%emt 0:02:48]} (10... O-O $14) 11. Ng3 {[%emt 0:06:43]} Nh5 {[%emt 0:10:55]} ({Black should try} 11... Be6 $14) 12. h3 $1 $16 {[%emt 0:06:24]} Bxf3 {[%emt 0:09:14]} 13. Qxf3 {[%emt 0:00:25][%csl Gc4][%cal Rf3f7] [#]} Nf4 {[%emt 0:00:09]} 14. Nf5 {[%emt 0:02:45] g3 is the strong threat.} Rh7 {[%emt 0:09:35]} (14... Qf6 $16 15. b4 Ne7) 15. Be3 $18 {[%emt 0:07:10]} h5 {[%emt 0:05:48]} 16. Qg3 {[%emt 0:04:42]} f6 {[%emt 0:14:58]} (16... Bxe3 $16 17. fxe3 Ne6) 17. d4 {[%emt 0:05:37] And now h4 would win.} Ne7 $2 {[%emt 0:06:53][%mdl 8192] [#] A mistake that costs the game.} (17... Qd7 $16 18. Bxf4 exf4) 18. dxe5 {[%emt 0:03:06]} dxe5 {[%emt 0:00:10]} (18... Nxf5 $142 19. exf5 h4) 19. Rad1 {[%emt 0:02:01] White is clearly winning.} Qc8 {[%emt 0:03:34]} 20. Bxf4 {[%emt 0:05:00]} gxf4 {[%emt 0:07:49]} 21. Qh4 {[%emt 0:00:54] Weighted Error Value: White=0.16 (very precise) /Black=0.58.  Loses game:     	---       	Black=1      Mistake:       	---       	Black=5      Inaccurate:     	White=2     	---        OK:         	White=2     	Black=3      Best:        	White=1     	Black=1      Strong:       	White=1     	---} 1-0

[Event "VIII Open Semana Santa 2024"]
[Site "San Vicente del Raspeig"]
[Date "2024.03.28"]
[Round "2.17"]
[White "Zhu, Jiner"]
[Black "Ostensen, Nicolai Maxime"]
[Result "1-0"]
[ECO "B31"]
[WhiteElo "2467"]
[BlackElo "2222"]
[Annotator "TA"]
[PlyCount "75"]
[EventDate "2024.03.27"]
[EventType "swiss"]
[EventCountry "ESP"]
[SourceTitle "playchess.com"]
[Source "ChessBase"]
[SourceQuality "1"]
[TimeControl "5400+30"]

{[%evp 16,75,37,36,65,46,84,27,128,111,112,102,93,98,111,107,160,153,122,96,114,107,111,100,122,118,170,169,189,200,220,229,227,213,223,206,202,208,253,262,263,266,264,271,294,290,278,287,324,305,376,361,314,314,772,771,771,737,771,677,526,504]} 1. e4 {[%emt 0:00:04]} c5 {[%emt 0:00:07]} 2. Nf3 {[%emt 0:00:05]} Nc6 {[%emt 0:00:09]} 3. Bb5 {[%emt 0:00:06]} Nf6 {[%emt 0:00:10]} 4. Nc3 {[%emt 0:01:03]} g6 {[%emt 0:00:06]} 5. O-O {[%emt 0:00:21]} Bg7 {[%emt 0:00:05]} 6. e5 {[%emt 0:02:08]} Ng4 {[%emt 0:00:10]} 7. Bxc6 {[%emt 0:00:21]} dxc6 {[%emt 0:00:05]} 8. Re1 {[%emt 0:00:50]} O-O {[%emt 0:00:39]} 9. d3 {[%emt 0:03:22]} f6 {[%emt 0:12:21][%cal Rg4e5]} 10. Qe2 {[%emt 0:09:03]} b6 {[%emt 0:17:17]} 11. h3 {[%emt 0:04:14]} ({White should try} 11. Bf4 $16) 11... Nh6 {[%emt 0:02:29]} (11... Nxe5 $11 {remains equal.} 12. Nxe5 fxe5) 12. Bxh6 $16 {[%emt 0:02:21]} Bxh6 {[%emt 0:02:38] [#]} 13. d4 $1 {[%emt 0:00:30][%mdl 512]} cxd4 {[%emt 0:19:28]} 14. Qc4+ {[%emt 0:00:13]} Kh8 {[%emt 0:09:54]} 15. Nxd4 {[%emt 0:00:13]} fxe5 {[%emt 0:07:37]} (15... c5 $142 16. Ne6 Bxe6 17. Qxe6 fxe5) 16. Nxc6 {[%emt 0:01:54]} (16. Qxc6 Bd7 (16... exd4 $2 17. Qxa8 dxc3 18. Qxa7 $19) 17. Qd5 exd4 $19) 16... Qd2 {[%emt 0:04:49]} 17. Re2 {[%emt 0:04:01] Active counter play!} (17. Nxe5 Qxf2+ 18. Kh1 Bb7 $15 (18... Qxc2 19. Nf7+ Rxf7 20. Qxf7 $16)) 17... Qf4 {[%emt 0:01:02]} 18. Qxf4 {[%emt 0:00:08]} (18. Nxe5 Qxc4 19. Nxc4 Ba6 $18) 18... exf4 {[%emt 0:00:25]} 19. Rxe7 {[%emt 0:00:14][%cal Oa1d1]} ({But not} 19. Nxe7 $6 f3 20. Re4 Bb7 $11) 19... Bf5 {[%emt 0:01:50]} 20. Nd4 {[%emt 0:04:42] A dynamic duo of knights.} Rad8 {[%emt 0:05:54]} (20... Bg7 $16 {was necessary.} 21. Nxf5 gxf5) 21. Nxf5 $18 {[%emt 0:00:19]} Rxf5 {[%emt 0:00:17]} 22. Rae1 {[%emt 0:01:32]} Rd2 {[%emt 0:03:57]} 23. Rxa7 {[%emt 0:13:07] aiming for Re8+.} Rxc2 {[%emt 0:02:57]} 24. Re8+ {[%emt 0:00:06]} Bf8 {[%emt 0:00:45] [#]} 25. Nb5 $1 {[%emt 0:00:15][%mdl 512]} Rd2 {[%emt 0:03:17][%cal Oh8g8] Dodges Nd4} 26. Nc7 {[%emt 0:01:50]} Rd1+ {[%emt 0:00:38]} 27. Kh2 {[%emt 0:00:05]} Rd7 {[%emt 0:00:23][%cal Bd1d7,Bd7c7,Bc7c6][%mdl 32]} 28. Raa8 {[%emt 0:00:15]} Rxc7 {[%emt 0:00:43]} 29. Rxf8+ {[%emt 0:00:05]} Kg7 {[%emt 0:00:20]} 30. Rxf5 {[%emt 0:00:04]} gxf5 {[%emt 0:04:58][%mdl 4096] Endgame. KR-KR} 31. Ra4 {[%emt 0:00:13]} f3 {[%emt 0:00:00]} 32. Rb4 {[%emt 0:00:25]} Rc6 {[%emt 0:00:00]} 33. g4 {[%emt 0:01:09]} fxg4 {[%emt 0:00:10]} 34. hxg4 {[%emt 0:00:05]} (34. Rxg4+ Kf6 35. Rb4 Kg6) 34... h5 $2 {[%emt 0:00:54]} (34... Kf6 35. Kg3 Kg6 36. Kxf3 Kh6) 35. gxh5 {[%emt 0:00:36] White is clearly winning.} Kh6 {[%emt 0:00:05]} 36. Rb5 {[%emt 0:00:13]} Rc4 {[%emt 0:00:47]} 37. Rxb6+ {[%emt 0:00:15]} Kxh5 {[%emt 0:00:05]} 38. Kg3 {[%emt 0:00:03] Weighted Error Value: White=0.09 (flawless) /Black=0.26 (precise) .  Mistake:       	White=1     	Black=4      Inaccurate:     	---       	Black=1      OK:         	White=14    	Black=6      Best:        	White=4     	Black=3} 1-0

[Event "VIII Open Semana Santa 2024"]
[Site "San Vicente del Raspeig"]
[Date "2024.03.28"]
[Round "2.18"]
[White "Neagu, Roberto Florin"]
[Black "Diaz Perez, Michel Alejandro"]
[Result "1-0"]
[ECO "D36"]
[WhiteElo "2217"]
[BlackElo "2464"]
[Annotator "TA"]
[PlyCount "85"]
[EventDate "2024.03.27"]
[EventType "swiss"]
[EventCountry "ESP"]
[SourceTitle "playchess.com"]
[Source "ChessBase"]
[SourceQuality "1"]
[TimeControl "5400+30"]

{[%evp 22,85,8,0,6,14,11,10,7,0,0,-6,-14,-14,11,-5,-11,-20,-25,-32,-42,-62,0,7,5,0,18,16,87,46,39,8,23,28,37,34,39,0,83,73,68,70,80,78,108,76,107,99,86,58,86,84,191,171,12641,310,12052,12849,12845,29942,29939,12846,6537,6323,2575,2493]} 1. d4 {[%emt 0:00:28]} Nf6 {[%emt 0:00:13]} 2. Nf3 {[%emt 0:00:23]} e6 {[%emt 0:00:03]} 3. c4 {[%emt 0:00:15]} d5 {[%emt 0:00:12]} 4. Nc3 {[%emt 0:00:38]} Nbd7 {[%emt 0:00:16]} 5. cxd5 {[%emt 0:00:23]} exd5 {[%emt 0:00:04]} 6. Qc2 {[%emt 0:00:22]} c6 {[%emt 0:00:38]} 7. Bg5 {[%emt 0:00:58]} Be7 {[%emt 0:00:17]} 8. e3 {[%emt 0:00:09]} Nh5 {[%emt 0:01:23]} 9. Bxe7 {[%emt 0:00:08]} Qxe7 {[%emt 0:00:02]} 10. h3 {[%emt 0:01:01]} g6 {[%emt 0:02:38]} 11. O-O-O {[%emt 0:03:51]} Nb6 {[%emt 0:02:58]} 12. Bd3 {[%emt 0:02:50]} Ng7 {[%emt 0:03:45]} 13. g4 {[%emt 0:00:12]} Be6 {[%emt 0:04:12]} 14. Kb1 {[%emt 0:01:47]} O-O-O {[%emt 0:01:20] The position is equal.} 15. Ne5 {[%emt 0:04:37]} f6 {[%emt 0:04:23]} 16. Nf3 {[%emt 0:00:04]} Kb8 {[%emt 0:00:18]} 17. Ne2 {[%emt 0:02:11]} Ne8 {[%emt 0:09:49]} 18. Rc1 {[%emt 0:05:03]} Nd6 {[%emt 0:01:48]} 19. b3 {[%emt 0:05:23]} Nd7 {[%emt 0:09:31]} 20. Nf4 {[%emt 0:03:13]} Bf7 {[%emt 0:01:46]} 21. h4 {[%emt 0:02:30][%cal Bh3h4,Bh4h5][%mdl 32]} Rc8 {[%emt 0:03:01]} ({Black should play} 21... g5 $1 $15 22. hxg5 fxg5) 22. g5 $11 {[%emt 0:15:10]} Be6 {[%emt 0:07:23]} 23. gxf6 {[%emt 0:06:01]} Qxf6 {[%emt 0:00:56]} 24. h5 {[%emt 0:00:36]} Bf5 {[%emt 0:08:05]} (24... Bg4 $11 25. Ne5 Nxe5 26. dxe5 Qxe5) 25. Bxf5 {[%emt 0:05:35]} (25. hxg6 {simplifies} hxg6 26. Bxf5 Qxf5 27. Rxh8 Rxh8 28. Nxg6 Qxc2+ 29. Kxc2 Rh6 30. Nfh4) 25... gxf5 {[%emt 0:00:50]} 26. Qb2 {[%emt 0:04:02]} Ne4 {[%emt 0:02:30]} 27. Rcg1 {[%emt 0:03:37]} Rhg8 {[%emt 0:02:59]} 28. Ne5 {[%emt 0:06:48]} Qe7 {[%emt 0:04:58]} 29. Nfd3 {[%emt 0:06:05]} Ndf6 {[%emt 0:02:49]} (29... Nxe5 $11 30. Nxe5 Ka8) 30. f3 $16 {[%emt 0:03:57] [#] aiming for Rxg8.} Nd6 {[%emt 0:04:11]} 31. Qh2 {[%emt 0:02:02][%cal Oe5f7]} Ka8 {[%emt 0:00:53]} 32. h6 {[%emt 0:00:41]} a6 {[%emt 0:03:38]} 33. Qh4 {[%emt 0:03:01]} Nb5 {[%emt 0:02:32]} 34. Nc5 {[%emt 0:03:48]} Rce8 {[%emt 0:08:26]} 35. Rg5 {[%emt 0:03:32] White is more active.} (35. Qh2 {simplifies} Nc7 36. Rc1 f4 37. Qxf4 Ne6 38. Nxe6 Qxe6 39. Rhg1) 35... Rxg5 {[%emt 0:07:20]} 36. Qxg5 {[%emt 0:00:07]} Rg8 {[%emt 0:01:14]} (36... Nd6 $16 {keeps fighting.}) 37. Qxf5 $18 {[%emt 0:00:24]} Rg2 $2 {[%emt 0:00:31]} (37... Nd6 38. Qd3 (38. Qe6 Qxe6 39. Nxe6 Rg2 $14) 38... Qc7) 38. Qc8+ {[%emt 0:01:34]} Ka7 {[%emt 0:00:01][%cal Ba8a7,Ba7b8,Bb8c8][%mdl 32] [#]} 39. Nxc6+ $1 {[%emt 0:00:45][%mdl 512]} bxc6 {[%emt 0:00:50]} 40. Qxa6+ {[%emt 0:00:06]} (40. Nxa6 $2 Nc3+ 41. Kc1 Qxe3#) 40... Kb8 {[%emt 0:00:01]} 41. Qb6+ {[%emt 0:00:07]} (41. Qxc6 $2 {is a self mate.} Nc3+ 42. Kc1 Qxe3#) 41... Kc8 {[%emt 0:01:38]} 42. Qxc6+ {[%emt 0:00:07]} Qc7 {[%emt 0:00:26]} 43. Qa6+ {[%emt 0:00:22] Weighted Error Value: White=0.10 (very precise) /Black=0.25 (precise) .  Mistake:       	---       	Black=5      Inaccurate:     	White=4     	Black=4      OK:         	White=6     	Black=7      Best:        	White=3     	Black=1} ({And not} 43. Qxf6 Nc3+ 44. Kc1 Nxa2+ 45. Kd1 Nc3+ 46. Kc1 Na2+ 47. Kd1 Nc3+ 48. Kc1 Na2+ $11) 1-0

[Event "VIII Open Semana Santa 2024"]
[Site "San Vicente del Raspeig"]
[Date "2024.03.28"]
[Round "2.19"]
[White "Baskin, Robert"]
[Black "Jansen, Bob"]
[Result "1-0"]
[ECO "B09"]
[WhiteElo "2461"]
[BlackElo "2217"]
[Annotator "TA"]
[PlyCount "41"]
[EventDate "2024.03.27"]
[EventType "swiss"]
[EventCountry "ESP"]
[SourceTitle "playchess.com"]
[Source "ChessBase"]
[SourceQuality "1"]
[TimeControl "5400+30"]

{[%evp 14,41,41,42,69,84,66,67,66,68,76,64,64,62,62,47,107,120,97,108,152,25,168,214,222,225,216,220,219,215]} 1. e4 {[%emt 0:00:13]} d6 {[%emt 0:01:24]} 2. d4 {[%emt 0:03:37]} Nf6 {[%emt 0:00:02]} 3. Nc3 {[%emt 0:00:32]} g6 {[%emt 0:00:05]} 4. f4 {[%emt 0:01:03]} Bg7 {[%emt 0:00:22]} 5. Nf3 {[%emt 0:00:08]} O-O {[%emt 0:00:30]} 6. Bd3 {[%emt 0:00:30]} Na6 {[%emt 0:01:09]} 7. O-O {[%emt 0:01:05]} c5 {[%emt 0:00:06]} 8. d5 $1 {[%emt 1:27:22]} c4 {[%emt 0:00:55]} 9. Bxc4 {[%emt 0:00:00]} b5 {[%emt 0:07:15]} 10. Nxb5 {[%emt 0:00:00][%cal Bc3b5,Bb5d4,Bd4b3,Bb3a5,Ba5c4][%mdl 32] Strongly threatening Qe2.} ({Much worse is} 10. Bxb5 Nxe4 11. Na4 Nac5 12. Nxc5 Nxc5 $11) 10... Nxe4 {[%emt 1:23:42] White is slightly better.} 11. Qe2 {[%emt 0:00:00]} Nac5 {[%emt 0:00:00]} 12. c3 {[%emt 0:00:00]} Bb7 {[%emt 0:00:00]} 13. Be3 {[%emt 0:00:00][%cal Of4f5]} a6 {[%emt 0:00:00]} 14. Nbd4 {[%emt 0:00:00]} Qd7 {[%emt 0:00:00]} (14... Qc7 $14) 15. Nb3 $16 {[%emt 0:00:00]} Na4 {[%emt 0:00:00]} 16. Na5 {[%emt 0:00:00]} Rfb8 {[%emt 0:00:00]} 17. Rad1 {[%emt 0:00:00]} (17. f5 $16) 17... Nxb2 {[%emt 0:00:00] This costs Black the game.} 18. Qxb2 $18 {[%emt 0:00:00] Threatens to win with Qa3. White is clearly better.} Bxd5 {[%emt 0:00:00]} 19. Qc2 {[%emt 0:00:00]} Bxc4 {[%emt 0:00:00]} 20. Nxc4 {[%emt 0:00:00]} Nxc3 {[%emt 0:00:00][%cal Od7c7] [#]} 21. Nfe5 $1 {[%emt 0:00:00][%mdl 512] Weighted Error Value: White=0.18 (very precise) /Black=0.27 (precise) .  Mistake:       	White=1     	Black=2      Inaccurate:     	---       	Black=1      OK:         	White=9     	Black=6} 1-0

[Event "VIII Open Semana Santa 2024"]
[Site "San Vicente del Raspeig"]
[Date "2024.03.28"]
[Round "2.20"]
[White "Exposito Milan, Adrian"]
[Black "Schulman, Julia"]
[Result "1-0"]
[ECO "A39"]
[WhiteElo "2276"]
[BlackElo "1732"]
[Annotator "RC"]
[PlyCount "77"]
[EventDate "2024.03.27"]
[EventType "swiss"]
[EventCountry "ESP"]
[SourceTitle "playchess.com"]
[Source "ChessBase"]
[SourceQuality "1"]
[TimeControl "5400+30"]

1. d4 {[%emt 0:00:10]} Nf6 {[%emt 0:03:00]} 2. Nf3 {[%emt 0:01:54]} g6 {[%emt 0:00:12]} 3. c4 {[%emt 0:00:31]} c5 {[%emt 0:00:13]} 4. g3 {[%emt 0:00:22]} cxd4 {[%emt 0:00:40]} 5. Nxd4 {[%emt 0:01:03]} Nc6 {[%emt 0:00:17]} 6. Bg2 {[%emt 0:01:26]} Bg7 {[%emt 0:00:32]} 7. O-O {[%emt 0:02:31]} O-O {[%emt 0:00:23]} 8. Nc3 {[%emt 0:00:59]} Re8 {[%emt 0:07:59]} 9. Nc2 {[%emt 0:08:51]} d6 {[%emt 0:02:51]} 10. b3 {[%emt 0:01:52]} Rb8 {[%emt 0:03:25]} 11. Bb2 {[%emt 0:03:37]} Be6 {[%emt 0:05:05]} 12. e4 {[%emt 0:08:04]} Nd7 {[%emt 0:11:13]} 13. Qd2 {[%emt 0:10:28]} Nf8 {[%emt 0:05:24]} 14. Rac1 {[%emt 0:06:10]} Qc8 {[%emt 0:01:35]} 15. Rfe1 {[%emt 0:03:54]} Bh3 {[%emt 0:01:21]} 16. Bh1 {[%emt 0:01:04]} Ne5 {[%emt 0:02:27]} 17. Ne3 {[%emt 0:04:25]} h5 {[%emt 0:03:55]} 18. Ncd5 {[%emt 0:03:46]} Nh7 {[%emt 0:10:42]} 19. f4 {[%emt 0:08:14]} Ng4 {[%emt 0:01:44]} 20. Nxg4 {[%emt 0:02:08]} Bxg4 {[%emt 0:01:28]} 21. Bxg7 {[%emt 0:01:33]} Kxg7 {[%emt 0:00:04]} 22. Qd4+ {[%emt 0:00:09]} e5 {[%emt 0:03:14]} 23. Qxa7 {[%emt 0:02:42]} Ra8 {[%emt 0:00:08]} 24. Qf2 {[%emt 0:00:15]} Ra6 {[%emt 0:02:44]} 25. Bg2 {[%emt 0:01:58]} Qd7 {[%emt 0:03:24]} 26. Rc2 {[%emt 0:02:24]} Rc6 {[%emt 0:02:55]} 27. Rd2 {[%emt 0:01:39]} Qd8 {[%emt 0:03:32]} 28. h3 {[%emt 0:04:39]} Be6 {[%emt 0:00:19]} 29. fxe5 {[%emt 0:05:15]} Bxd5 {[%emt 0:00:32]} 30. exd5 {[%emt 0:00:30]} Ra6 {[%emt 0:00:39]} 31. exd6 {[%emt 0:02:03]} Rxe1+ {[%emt 0:00:35]} 32. Qxe1 {[%emt 0:00:05]} Qxd6 {[%emt 0:00:21]} 33. Qe3 {[%emt 0:01:16]} Nf6 {[%emt 0:03:13]} 34. c5 {[%emt 0:01:05]} Qd7 {[%emt 0:02:08]} 35. d6 {[%emt 0:02:06]} Ra8 {[%emt 0:00:41]} 36. Qd4 {[%emt 0:02:50]} Re8 {[%emt 0:01:42]} 37. Rf2 {[%emt 0:00:25]} Re1+ {[%emt 0:00:40]} 38. Kh2 {[%emt 0:00:15]} Qe6 {[%emt 0:00:44]} 39. d7 {[%emt 0:01:32]} 1-0

[Event "VIII Open Semana Santa 2024"]
[Site "San Vicente del Raspeig"]
[Date "2024.03.28"]
[Round "3.1"]
[White "Alekseenko, Kirill"]
[Black "Colbow, Collin"]
[Result "1-0"]
[ECO "B52"]
[WhiteElo "2650"]
[BlackElo "2373"]
[Annotator "TA"]
[PlyCount "69"]
[EventDate "2024.03.27"]
[EventType "swiss"]
[EventCountry "ESP"]
[SourceTitle "playchess.com"]
[Source "ChessBase"]
[SourceQuality "1"]
[TimeControl "5400+30"]

{[%evp 9,69,10,26,16,16,0,0,0,0,0,3,0,0,-20,-21,-24,0,0,0,0,0,0,10,0,20,19,278,265,275,114,118,133,89,138,97,95,130,131,169,145,143,144,286,285,294,279,287,255,331,334,425,391,375,316,365,370,559,585,554,556,6487,6331]} 1. e4 {[%emt 0:00:04]} c5 {[%emt 0:02:35]} 2. Nf3 {[%emt 0:00:14]} d6 {[%emt 0:00:12]} 3. Bb5+ {[%emt 0:00:24]} Bd7 {[%emt 1:29:13]} 4. c4 {[%emt 0:00:22]} Nc6 {[%emt 0:00:00]} 5. Nc3 {[%emt 0:00:12]} Nf6 {[%emt 0:00:00]} 6. O-O {[%emt 0:04:41]} g6 {[%emt 0:00:00]} 7. d4 {[%emt 0:05:47]} cxd4 {[%emt 0:00:00]} 8. Nxd4 {[%emt 0:00:06] The position is equal.} Bg7 {[%emt 0:00:00][%cal Of6e4]} 9. Bxc6 $1 {[%emt 0:01:41]} bxc6 {[%emt 0:00:00][%cal Bb7c6,Bc6d5,Bd5d4][%mdl 32] [#]} 10. c5 $1 {[%emt 0:05:39]} O-O {[%emt 0:00:00][%cal Bh8f8,Bf8e8,Be8e4][%mdl 32]} 11. cxd6 {[%emt 0:06:05]} exd6 {[%emt 0:00:00]} 12. Bf4 {[%emt 0:01:03]} d5 {[%emt 0:00:00]} 13. exd5 $1 {[%emt 0:01:31]} Nxd5 {[%emt 0:00:00]} 14. Nxd5 {[%emt 0:00:29]} cxd5 {[%emt 0:00:00]} 15. Be3 {[%emt 0:01:15]} Re8 {[%emt 0:00:00]} 16. Qd2 {[%emt 0:02:11]} Qh4 {[%emt 0:00:00]} 17. Rac1 {[%emt 0:09:18]} Bh3 $2 {[%emt 0:00:00][%mdl 8192] [#]} 18. gxh3 $18 {[%emt 0:26:37]} Re4 {[%emt 0:00:00]} 19. Ne2 {[%emt 0:00:42]} (19. Rcd1 $18) 19... d4 $16 {[%emt 0:00:00]} 20. Bg5 {[%emt 0:00:37]} Rxe2 {[%emt 0:02:20]} 21. Qxe2 {[%emt 0:00:05]} Qxg5+ {[%emt 0:00:05]} 22. Qg4 {[%emt 0:00:04]} Qd8 {[%emt 0:00:36]} (22... Qxg4+ $2 23. hxg4 d3 24. b4 $18) 23. Rc5 {[%emt 0:07:04]} h5 {[%emt 0:01:04]} 24. Qf3 {[%emt 0:01:21]} Rb8 {[%emt 0:01:08]} 25. Rfc1 {[%emt 0:00:51] Threatens to win with Rc7.} Qe7 {[%emt 0:04:54]} (25... d3 $16) 26. Rc7 $18 {[%emt 0:05:10]} Qe6 {[%emt 0:00:10]} 27. b3 {[%emt 0:01:51]} (27. Rxa7 Rb5 $14) 27... Rb5 {[%emt 0:00:56]} 28. R7c5 {[%emt 0:02:37]} ({Weaker is} 28. Rxa7 Rg5+ 29. Kf1 Rf5 30. Qa8+ Kh7 $15) 28... Rb8 {[%emt 0:00:45]} 29. Rc6 {[%emt 0:00:34][%cal Bc5c6,Bc6c7,Bc7a7][%mdl 32]} Qe7 {[%emt 0:00:15]} 30. Rc7 {[%emt 0:00:20]} Qg5+ {[%emt 0:00:28]} 31. Qg3 {[%emt 0:00:31]} Qd8 {[%emt 0:00:36]} 32. Qf4 {[%emt 0:01:40]} (32. Rxa7 Rb5 33. h4 Rf5 $16) 32... Bf6 {[%emt 0:01:13]} (32... Qe8 $142 33. Rxa7 (33. Rxf7 Be5 $16) 33... Be5) 33. R1c6 {[%emt 0:03:19] White is clearly winning.} Kg7 {[%emt 0:00:00]} 34. Rxa7 {[%emt 0:00:45]} Rb6 {[%emt 0:00:20]} 35. Rcc7 {[%emt 0:01:34] Weighted Error Value: White=0.12 (very precise) /Black=0.46.  Loses game:     	---       	Black=1      Missed win:     	White=1     	---        Mistake:       	---       	Black=2      Inaccurate:     	---       	Black=2      OK:         	White=13    	Black=10     Best:        	White=3     	Black=2      Strong:       	White=2     	---} 1-0